Workbook

Sheet Fatura
D1: Cansado de criar faturas manualmente? Você quer ser pago mais cedo? Inscreva-se no Microsoft Invoicing hoje
C5: NOME DA EMPRESA
C6: Endereço
C7: Cidade, Estado, CEP
B9: COBRANÇA PARA | C9: =IFERROR(VLOOKUP(VLOOKUP(rngFatura,FaturasPrincipal[],2,FALSE),ListaClientes[],3,TRUE),"") -> Contoso, Ltd | D9: ="Telefone: "&IFERROR(VLOOKUP(VLOOKUP(rngFatura,FaturasPrincipal[],2,FALSE),ListaClientes[],9,FALSE),"") -> Telefone: (55) 3555-0189 | F9: Nº DA FATURA | G9: 3-456-2
C10: =IFERROR(IF((VLOOKUP(VLOOKUP(rngFatura,FaturasPrincipal[],2,FALSE),ListaClientes[],5,FALSE))="","",(VLOOKUP(VLOOKUP(rngFatura,FaturasPrincipal[],2,FALSE),ListaClientes[],5,FALSE))),"") -> Rua Castanheira, 555 | D10: ="Fax: "&IFERROR(VLOOKUP(VLOOKUP(rngFatura,FaturasPrincipal[],2,FALSE),ListaClientes[],11,FALSE),"") -> Fax: 432-555-0123 | F10: Data da Fatura: | G10: =IFERROR(IF(VLOOKUP(rngFatura,FaturasPrincipal[],3,FALSE)="","",VLOOKUP(rngFatura,FaturasPrincipal[],3,FALSE)),"") -> 2019-11-01
C11: =IFERROR(VLOOKUP(VLOOKUP(rngFatura,FaturasPrincipal[],2,FALSE),ListaClientes[],6,FALSE)&", "& VLOOKUP(VLOOKUP(G9,FaturasPrincipal[],2,FALSE),ListaClientes[],7,FALSE)&" "&VLOOKUP(VLOOKUP(G9,FaturasPrincipal[],2,FALSE),ListaClientes[],8,FALSE),"") -> Campinas, SP 98765 | D11: ="Email: "&IFERROR(VLOOKUP(VLOOKUP(rngFatura,FaturasPrincipal[],2,FALSE),ListaClientes[],10,FALSE),"") -> Email: pessoa@exemplo.com
B14: Nº do item | C14: Descrição | D14: Qtd. | E14: Preço Unitário | F14: Desconto | G14: Preço
B15: =IFERROR(INDEX(DetalhesDaFatura[],SMALL(IF(DetalhesDaFatura[]=rngFatura,ROW(DetalhesDaFatura[])-ROW(DetalhesDaFatura[#Headers])), ROW(2:2)), MATCH($B$14, DetalhesDaFatura[#Headers], 0)),"") -> Z4568 | C15: =IFERROR(INDEX(DetalhesDaFatura[],SMALL(IF(DetalhesDaFatura[]=rngFatura,ROW(DetalhesDaFatura[])-ROW(DetalhesDaFatura[#Headers])), ROW(2:2)), MATCH($C$14, DetalhesDaFatura[#Headers], 0)),"") -> Fatura 3-456-2 Dados 2 | D15: =IFERROR(INDEX(DetalhesDaFatura[],SMALL(IF(DetalhesDaFatura[]=rngFatura,ROW(DetalhesDaFatura[])-ROW(DetalhesDaFatura[#Headers])), ROW(2:2)), MATCH($D$14, DetalhesDaFatura[#Headers], 0)),"") -> 40 | E15: =IFERROR(INDEX(DetalhesDaFatura[],SMALL(IF(DetalhesDaFatura[]=rngFatura,ROW(DetalhesDaFatura[])-ROW(DetalhesDaFatura[#Headers])), ROW(2:2)), MATCH($E$14, DetalhesDaFatura[#Headers], 0)),"") -> R$ 4.00 | F15: =IFERROR(INDEX(DetalhesDaFatura[],SMALL(IF(DetalhesDaFatura[]=rngFatura,ROW(DetalhesDaFatura[])-ROW(DetalhesDaFatura[#Headers])), ROW(2:2)), MATCH($F$14, DetalhesDaFatura[#Headers], 0)),"") -> R$ 5.00 | G15: =IFERROR((D15*E15)-F15,"") -> R$ 155.00
B16: =IFERROR(INDEX(DetalhesDaFatura[],SMALL(IF(DetalhesDaFatura[]=rngFatura,ROW(DetalhesDaFatura[])-ROW(DetalhesDaFatura[#Headers])), ROW(3:3)), MATCH($B$14, DetalhesDaFatura[#Headers], 0)),"") -> Z4569 | C16: =IFERROR(INDEX(DetalhesDaFatura[],SMALL(IF(DetalhesDaFatura[]=rngFatura,ROW(DetalhesDaFatura[])-ROW(DetalhesDaFatura[#Headers])), ROW(3:3)), MATCH($C$14, DetalhesDaFatura[#Headers], 0)),"") -> Fatura 3-456-2 Dados 3 | D16: =IFERROR(INDEX(DetalhesDaFatura[],SMALL(IF(DetalhesDaFatura[]=rngFatura,ROW(DetalhesDaFatura[])-ROW(DetalhesDaFatura[#Headers])), ROW(3:3)), MATCH($D$14, DetalhesDaFatura[#Headers], 0)),"") -> 30 | E16: =IFERROR(INDEX(DetalhesDaFatura[],SMALL(IF(DetalhesDaFatura[]=rngFatura,ROW(DetalhesDaFatura[])-ROW(DetalhesDaFatura[#Headers])), ROW(3:3)), MATCH($E$14, DetalhesDaFatura[#Headers], 0)),"") -> R$ 6.00 | F16: =IFERROR(INDEX(DetalhesDaFatura[],SMALL(IF(DetalhesDaFatura[]=rngFatura,ROW(DetalhesDaFatura[])-ROW(DetalhesDaFatura[#Headers])), ROW(3:3)), MATCH($F$14, DetalhesDaFatura[#Headers], 0)),"") -> R$ 7.00 | G16: R$ 173.00
B17: =IFERROR(INDEX(DetalhesDaFatura[],SMALL(IF(DetalhesDaFatura[]=rngFatura,ROW(DetalhesDaFatura[])-ROW(DetalhesDaFatura[#Headers])), ROW(4:4)), MATCH($B$14, DetalhesDaFatura[#Headers], 0)),"") -> Z4570 | C17: =IFERROR(INDEX(DetalhesDaFatura[],SMALL(IF(DetalhesDaFatura[]=rngFatura,ROW(DetalhesDaFatura[])-ROW(DetalhesDaFatura[#Headers])), ROW(4:4)), MATCH($C$14, DetalhesDaFatura[#Headers], 0)),"") -> Fatura 3-456-2 Dados 4 | D17: =IFERROR(INDEX(DetalhesDaFatura[],SMALL(IF(DetalhesDaFatura[]=rngFatura,ROW(DetalhesDaFatura[])-ROW(DetalhesDaFatura[#Headers])), ROW(4:4)), MATCH($D$14, DetalhesDaFatura[#Headers], 0)),"") -> 40 | E17: =IFERROR(INDEX(DetalhesDaFatura[],SMALL(IF(DetalhesDaFatura[]=rngFatura,ROW(DetalhesDaFatura[])-ROW(DetalhesDaFatura[#Headers])), ROW(4:4)), MATCH($E$14, DetalhesDaFatura[#Headers], 0)),"") -> R$ 7.00 | F17: =IFERROR(INDEX(DetalhesDaFatura[],SMALL(IF(DetalhesDaFatura[]=rngFatura,ROW(DetalhesDaFatura[])-ROW(DetalhesDaFatura[#Headers])), ROW(4:4)), MATCH($F$14, DetalhesDaFatura[#Headers], 0)),"") -> R$ 0.00 | G17: R$ 280.00
B18: =IFERROR(INDEX(DetalhesDaFatura[],SMALL(IF(DetalhesDaFatura[]=rngFatura,ROW(DetalhesDaFatura[])-ROW(DetalhesDaFatura[#Headers])), ROW(5:5)), MATCH($B$14, DetalhesDaFatura[#Headers], 0)),"") -> Z4571 | C18: =IFERROR(INDEX(DetalhesDaFatura[],SMALL(IF(DetalhesDaFatura[]=rngFatura,ROW(DetalhesDaFatura[])-ROW(DetalhesDaFatura[#Headers])), ROW(5:5)), MATCH($C$14, DetalhesDaFatura[#Headers], 0)),"") -> Fatura 3-456-2 Dados 5 | D18: =IFERROR(INDEX(DetalhesDaFatura[],SMALL(IF(DetalhesDaFatura[]=rngFatura,ROW(DetalhesDaFatura[])-ROW(DetalhesDaFatura[#Headers])), ROW(5:5)), MATCH($D$14, DetalhesDaFatura[#Headers], 0)),"") -> 10 | E18: =IFERROR(INDEX(DetalhesDaFatura[],SMALL(IF(DetalhesDaFatura[]=rngFatura,ROW(DetalhesDaFatura[])-ROW(DetalhesDaFatura[#Headers])), ROW(5:5)), MATCH($E$14, DetalhesDaFatura[#Headers], 0)),"") -> R$ 4.00 | F18: =IFERROR(INDEX(DetalhesDaFatura[],SMALL(IF(DetalhesDaFatura[]=rngFatura,ROW(DetalhesDaFatura[])-ROW(DetalhesDaFatura[#Headers])), ROW(5:5)), MATCH($F$14, DetalhesDaFatura[#Headers], 0)),"") -> R$ 0.00 | G18: R$ 40.00
B19: =IFERROR(INDEX(DetalhesDaFatura[],SMALL(IF(DetalhesDaFatura[]=rngFatura,ROW(DetalhesDaFatura[])-ROW(DetalhesDaFatura[#Headers])), ROW(6:6)), MATCH($B$14, DetalhesDaFatura[#Headers], 0)),"") -> Z4572 | C19: =IFERROR(INDEX(DetalhesDaFatura[],SMALL(IF(DetalhesDaFatura[]=rngFatura,ROW(DetalhesDaFatura[])-ROW(DetalhesDaFatura[#Headers])), ROW(6:6)), MATCH($C$14, DetalhesDaFatura[#Headers], 0)),"") -> Fatura 3-456-2 Dados 6 | D19: =IFERROR(INDEX(DetalhesDaFatura[],SMALL(IF(DetalhesDaFatura[]=rngFatura,ROW(DetalhesDaFatura[])-ROW(DetalhesDaFatura[#Headers])), ROW(6:6)), MATCH($D$14, DetalhesDaFatura[#Headers], 0)),"") -> 5 | E19: =IFERROR(INDEX(DetalhesDaFatura[],SMALL(IF(DetalhesDaFatura[]=rngFatura,ROW(DetalhesDaFatura[])-ROW(DetalhesDaFatura[#Headers])), ROW(6:6)), MATCH($E$14, DetalhesDaFatura[#Headers], 0)),"") -> R$ 8.00 | F19: =IFERROR(INDEX(DetalhesDaFatura[],SMALL(IF(DetalhesDaFatura[]=rngFatura,ROW(DetalhesDaFatura[])-ROW(DetalhesDaFatura[#Headers])), ROW(6:6)), MATCH($F$14, DetalhesDaFatura[#Headers], 0)),"") -> R$ 0.00 | G19: R$ 40.00
B20: =IFERROR(INDEX(DetalhesDaFatura[],SMALL(IF(DetalhesDaFatura[]=rngFatura,ROW(DetalhesDaFatura[])-ROW(DetalhesDaFatura[#Headers])), ROW(7:7)), MATCH($B$14, DetalhesDaFatura[#Headers], 0)),"") -> Z4573 | C20: =IFERROR(INDEX(DetalhesDaFatura[],SMALL(IF(DetalhesDaFatura[]=rngFatura,ROW(DetalhesDaFatura[])-ROW(DetalhesDaFatura[#Headers])), ROW(7:7)), MATCH($C$14, DetalhesDaFatura[#Headers], 0)),"") -> Fatura 3-456-2 Dados 7 | D20: =IFERROR(INDEX(DetalhesDaFatura[],SMALL(IF(DetalhesDaFatura[]=rngFatura,ROW(DetalhesDaFatura[])-ROW(DetalhesDaFatura[#Headers])), ROW(7:7)), MATCH($D$14, DetalhesDaFatura[#Headers], 0)),"") -> 70 | E20: =IFERROR(INDEX(DetalhesDaFatura[],SMALL(IF(DetalhesDaFatura[]=rngFatura,ROW(DetalhesDaFatura[])-ROW(DetalhesDaFatura[#Headers])), ROW(7:7)), MATCH($E$14, DetalhesDaFatura[#Headers], 0)),"") -> R$ 6.00 | F20: =IFERROR(INDEX(DetalhesDaFatura[],SMALL(IF(DetalhesDaFatura[]=rngFatura,ROW(DetalhesDaFatura[])-ROW(DetalhesDaFatura[#Headers])), ROW(7:7)), MATCH($F$14, DetalhesDaFatura[#Headers], 0)),"") -> R$ 0.00 | G20: R$ 420.00
B21: =IFERROR(INDEX(DetalhesDaFatura[],SMALL(IF(DetalhesDaFatura[]=rngFatura,ROW(DetalhesDaFatura[])-ROW(DetalhesDaFatura[#Headers])), ROW(8:8)), MATCH($B$14, DetalhesDaFatura[#Headers], 0)),"") -> Z4574 | C21: =IFERROR(INDEX(DetalhesDaFatura[],SMALL(IF(DetalhesDaFatura[]=rngFatura,ROW(DetalhesDaFatura[])-ROW(DetalhesDaFatura[#Headers])), ROW(8:8)), MATCH($C$14, DetalhesDaFatura[#Headers], 0)),"") -> Fatura 3-456-2 Dados 8 | D21: =IFERROR(INDEX(DetalhesDaFatura[],SMALL(IF(DetalhesDaFatura[]=rngFatura,ROW(DetalhesDaFatura[])-ROW(DetalhesDaFatura[#Headers])), ROW(8:8)), MATCH($D$14, DetalhesDaFatura[#Headers], 0)),"") -> 25 | E21: =IFERROR(INDEX(DetalhesDaFatura[],SMALL(IF(DetalhesDaFatura[]=rngFatura,ROW(DetalhesDaFatura[])-ROW(DetalhesDaFatura[#Headers])), ROW(8:8)), MATCH($E$14, DetalhesDaFatura[#Headers], 0)),"") -> R$ 4.00 | F21: =IFERROR(INDEX(DetalhesDaFatura[],SMALL(IF(DetalhesDaFatura[]=rngFatura,ROW(DetalhesDaFatura[])-ROW(DetalhesDaFatura[#Headers])), ROW(8:8)), MATCH($F$14, DetalhesDaFatura[#Headers], 0)),"") -> R$ 0.00 | G21: R$ 100.00
B22: =IFERROR(INDEX(DetalhesDaFatura[],SMALL(IF(DetalhesDaFatura[]=rngFatura,ROW(DetalhesDaFatura[])-ROW(DetalhesDaFatura[#Headers])), ROW(9:9)), MATCH($B$14, DetalhesDaFatura[#Headers], 0)),"") -> Z4575 | C22: =IFERROR(INDEX(DetalhesDaFatura[],SMALL(IF(DetalhesDaFatura[]=rngFatura,ROW(DetalhesDaFatura[])-ROW(DetalhesDaFatura[#Headers])), ROW(9:9)), MATCH($C$14, DetalhesDaFatura[#Headers], 0)),"") -> Fatura 3-456-2 Dados 9 | D22: =IFERROR(INDEX(DetalhesDaFatura[],SMALL(IF(DetalhesDaFatura[]=rngFatura,ROW(DetalhesDaFatura[])-ROW(DetalhesDaFatura[#Headers])), ROW(9:9)), MATCH($D$14, DetalhesDaFatura[#Headers], 0)),"") -> 5 | E22: =IFERROR(INDEX(DetalhesDaFatura[],SMALL(IF(DetalhesDaFatura[]=rngFatura,ROW(DetalhesDaFatura[])-ROW(DetalhesDaFatura[#Headers])), ROW(9:9)), MATCH($E$14, DetalhesDaFatura[#Headers], 0)),"") -> R$ 7.00 | F22: =IFERROR(INDEX(DetalhesDaFatura[],SMALL(IF(DetalhesDaFatura[]=rngFatura,ROW(DetalhesDaFatura[])-ROW(DetalhesDaFatura[#Headers])), ROW(9:9)), MATCH($F$14, DetalhesDaFatura[#Headers], 0)),"") -> R$ 3.00 | G22: R$ 32.00
B23: =IFERROR(INDEX(DetalhesDaFatura[],SMALL(IF(DetalhesDaFatura[]=rngFatura,ROW(DetalhesDaFatura[])-ROW(DetalhesDaFatura[#Headers])), ROW(10:10)), MATCH($B$14, DetalhesDaFatura[#Headers], 0)),"") -> Z4576 | C23: =IFERROR(INDEX(DetalhesDaFatura[],SMALL(IF(DetalhesDaFatura[]=rngFatura,ROW(DetalhesDaFatura[])-ROW(DetalhesDaFatura[#Headers])), ROW(10:10)), MATCH($C$14, DetalhesDaFatura[#Headers], 0)),"") -> Fatura 3-456-2 Dados 10 | D23: =IFERROR(INDEX(DetalhesDaFatura[],SMALL(IF(DetalhesDaFatura[]=rngFatura,ROW(DetalhesDaFatura[])-ROW(DetalhesDaFatura[#Headers])), ROW(10:10)), MATCH($D$14, DetalhesDaFatura[#Headers], 0)),"") -> 80 | E23: =IFERROR(INDEX(DetalhesDaFatura[],SMALL(IF(DetalhesDaFatura[]=rngFatura,ROW(DetalhesDaFatura[])-ROW(DetalhesDaFatura[#Headers])), ROW(10:10)), MATCH($E$14, DetalhesDaFatura[#Headers], 0)),"") -> R$ 1.00 | F23: =IFERROR(INDEX(DetalhesDaFatura[],SMALL(IF(DetalhesDaFatura[]=rngFatura,ROW(DetalhesDaFatura[])-ROW(DetalhesDaFatura[#Headers])), ROW(10:10)), MATCH($F$14, DetalhesDaFatura[#Headers], 0)),"") -> R$ 0.00 | G23: R$ 80.00
B24: =IFERROR(INDEX(DetalhesDaFatura[],SMALL(IF(DetalhesDaFatura[]=rngFatura,ROW(DetalhesDaFatura[])-ROW(DetalhesDaFatura[#Headers])), ROW(11:11)), MATCH($B$14, DetalhesDaFatura[#Headers], 0)),"") -> Z4577 | C24: =IFERROR(INDEX(DetalhesDaFatura[],SMALL(IF(DetalhesDaFatura[]=rngFatura,ROW(DetalhesDaFatura[])-ROW(DetalhesDaFatura[#Headers])), ROW(11:11)), MATCH($C$14, DetalhesDaFatura[#Headers], 0)),"") -> Fatura 3-456-2 Dados 11 | D24: =IFERROR(INDEX(DetalhesDaFatura[],SMALL(IF(DetalhesDaFatura[]=rngFatura,ROW(DetalhesDaFatura[])-ROW(DetalhesDaFatura[#Headers])), ROW(11:11)), MATCH($D$14, DetalhesDaFatura[#Headers], 0)),"") -> 65 | E24: =IFERROR(INDEX(DetalhesDaFatura[],SMALL(IF(DetalhesDaFatura[]=rngFatura,ROW(DetalhesDaFatura[])-ROW(DetalhesDaFatura[#Headers])), ROW(11:11)), MATCH($E$14, DetalhesDaFatura[#Headers], 0)),"") -> R$ 7.00 | F24: =IFERROR(INDEX(DetalhesDaFatura[],SMALL(IF(DetalhesDaFatura[]=rngFatura,ROW(DetalhesDaFatura[])-ROW(DetalhesDaFatura[#Headers])), ROW(11:11)), MATCH($F$14, DetalhesDaFatura[#Headers], 0)),"") -> R$ 0.00 | G24: R$ 455.00
B25: =IFERROR(INDEX(DetalhesDaFatura[],SMALL(IF(DetalhesDaFatura[]=rngFatura,ROW(DetalhesDaFatura[])-ROW(DetalhesDaFatura[#Headers])), ROW(12:12)), MATCH($B$14, DetalhesDaFatura[#Headers], 0)),"") -> Z4578 | C25: =IFERROR(INDEX(DetalhesDaFatura[],SMALL(IF(DetalhesDaFatura[]=rngFatura,ROW(DetalhesDaFatura[])-ROW(DetalhesDaFatura[#Headers])), ROW(12:12)), MATCH($C$14, DetalhesDaFatura[#Headers], 0)),"") -> Fatura 3-456-2 Dados 12 | D25: =IFERROR(INDEX(DetalhesDaFatura[],SMALL(IF(DetalhesDaFatura[]=rngFatura,ROW(DetalhesDaFatura[])-ROW(DetalhesDaFatura[#Headers])), ROW(12:12)), MATCH($D$14, DetalhesDaFatura[#Headers], 0)),"") -> 44 | E25: =IFERROR(INDEX(DetalhesDaFatura[],SMALL(IF(DetalhesDaFatura[]=rngFatura,ROW(DetalhesDaFatura[])-ROW(DetalhesDaFatura[#Headers])), ROW(12:12)), MATCH($E$14, DetalhesDaFatura[#Headers], 0)),"") -> R$ 1.00 | F25: =IFERROR(INDEX(DetalhesDaFatura[],SMALL(IF(DetalhesDaFatura[]=rngFatura,ROW(DetalhesDaFatura[])-ROW(DetalhesDaFatura[#Headers])), ROW(12:12)), MATCH($F$14, DetalhesDaFatura[#Headers], 0)),"") -> R$ 0.00 | G25: R$ 44.00
B26: =IFERROR(INDEX(DetalhesDaFatura[],SMALL(IF(DetalhesDaFatura[]=rngFatura,ROW(DetalhesDaFatura[])-ROW(DetalhesDaFatura[#Headers])), ROW(13:13)), MATCH($B$14, DetalhesDaFatura[#Headers], 0)),"") ->  | C26: =IFERROR(INDEX(DetalhesDaFatura[],SMALL(IF(DetalhesDaFatura[]=rngFatura,ROW(DetalhesDaFatura[])-ROW(DetalhesDaFatura[#Headers])), ROW(13:13)), MATCH($C$14, DetalhesDaFatura[#Headers], 0)),"") ->  | D26: =IFERROR(INDEX(DetalhesDaFatura[],SMALL(IF(DetalhesDaFatura[]=rngFatura,ROW(DetalhesDaFatura[])-ROW(DetalhesDaFatura[#Headers])), ROW(13:13)), MATCH($D$14, DetalhesDaFatura[#Headers], 0)),"") ->  | E26: =IFERROR(INDEX(DetalhesDaFatura[],SMALL(IF(DetalhesDaFatura[]=rngFatura,ROW(DetalhesDaFatura[])-ROW(DetalhesDaFatura[#Headers])), ROW(13:13)), MATCH($E$14, DetalhesDaFatura[#Headers], 0)),"") ->  | F26: =IFERROR(INDEX(DetalhesDaFatura[],SMALL(IF(DetalhesDaFatura[]=rngFatura,ROW(DetalhesDaFatura[])-ROW(DetalhesDaFatura[#Headers])), ROW(13:13)), MATCH($F$14, DetalhesDaFatura[#Headers], 0)),"") -> 
B27: =IFERROR(INDEX(DetalhesDaFatura[],SMALL(IF(DetalhesDaFatura[]=rngFatura,ROW(DetalhesDaFatura[])-ROW(DetalhesDaFatura[#Headers])), ROW(14:14)), MATCH($B$14, DetalhesDaFatura[#Headers], 0)),"") ->  | C27: =IFERROR(INDEX(DetalhesDaFatura[],SMALL(IF(DetalhesDaFatura[]=rngFatura,ROW(DetalhesDaFatura[])-ROW(DetalhesDaFatura[#Headers])), ROW(14:14)), MATCH($C$14, DetalhesDaFatura[#Headers], 0)),"") ->  | D27: =IFERROR(INDEX(DetalhesDaFatura[],SMALL(IF(DetalhesDaFatura[]=rngFatura,ROW(DetalhesDaFatura[])-ROW(DetalhesDaFatura[#Headers])), ROW(14:14)), MATCH($D$14, DetalhesDaFatura[#Headers], 0)),"") ->  | E27: =IFERROR(INDEX(DetalhesDaFatura[],SMALL(IF(DetalhesDaFatura[]=rngFatura,ROW(DetalhesDaFatura[])-ROW(DetalhesDaFatura[#Headers])), ROW(14:14)), MATCH($E$14, DetalhesDaFatura[#Headers], 0)),"") ->  | F27: =IFERROR(INDEX(DetalhesDaFatura[],SMALL(IF(DetalhesDaFatura[]=rngFatura,ROW(DetalhesDaFatura[])-ROW(DetalhesDaFatura[#Headers])), ROW(14:14)), MATCH($F$14, DetalhesDaFatura[#Headers], 0)),"") -> 
B28: =IFERROR(INDEX(DetalhesDaFatura[],SMALL(IF(DetalhesDaFatura[]=rngFatura,ROW(DetalhesDaFatura[])-ROW(DetalhesDaFatura[#Headers])), ROW(15:15)), MATCH($B$14, DetalhesDaFatura[#Headers], 0)),"") ->  | C28: =IFERROR(INDEX(DetalhesDaFatura[],SMALL(IF(DetalhesDaFatura[]=rngFatura,ROW(DetalhesDaFatura[])-ROW(DetalhesDaFatura[#Headers])), ROW(15:15)), MATCH($C$14, DetalhesDaFatura[#Headers], 0)),"") ->  | D28: =IFERROR(INDEX(DetalhesDaFatura[],SMALL(IF(DetalhesDaFatura[]=rngFatura,ROW(DetalhesDaFatura[])-ROW(DetalhesDaFatura[#Headers])), ROW(15:15)), MATCH($D$14, DetalhesDaFatura[#Headers], 0)),"") ->  | E28: =IFERROR(INDEX(DetalhesDaFatura[],SMALL(IF(DetalhesDaFatura[]=rngFatura,ROW(DetalhesDaFatura[])-ROW(DetalhesDaFatura[#Headers])), ROW(15:15)), MATCH($E$14, DetalhesDaFatura[#Headers], 0)),"") ->  | F28: =IFERROR(INDEX(DetalhesDaFatura[],SMALL(IF(DetalhesDaFatura[]=rngFatura,ROW(DetalhesDaFatura[])-ROW(DetalhesDaFatura[#Headers])), ROW(15:15)), MATCH($F$14, DetalhesDaFatura[#Headers], 0)),"") -> 
B29: =IFERROR(INDEX(DetalhesDaFatura[],SMALL(IF(DetalhesDaFatura[]=rngFatura,ROW(DetalhesDaFatura[])-ROW(DetalhesDaFatura[#Headers])), ROW(16:16)), MATCH($B$14, DetalhesDaFatura[#Headers], 0)),"") ->  | C29: =IFERROR(INDEX(DetalhesDaFatura[],SMALL(IF(DetalhesDaFatura[]=rngFatura,ROW(DetalhesDaFatura[])-ROW(DetalhesDaFatura[#Headers])), ROW(16:16)), MATCH($C$14, DetalhesDaFatura[#Headers], 0)),"") ->  | D29: =IFERROR(INDEX(DetalhesDaFatura[],SMALL(IF(DetalhesDaFatura[]=rngFatura,ROW(DetalhesDaFatura[])-ROW(DetalhesDaFatura[#Headers])), ROW(16:16)), MATCH($D$14, DetalhesDaFatura[#Headers], 0)),"") ->  | E29: =IFERROR(INDEX(DetalhesDaFatura[],SMALL(IF(DetalhesDaFatura[]=rngFatura,ROW(DetalhesDaFatura[])-ROW(DetalhesDaFatura[#Headers])), ROW(16:16)), MATCH($E$14, DetalhesDaFatura[#Headers], 0)),"") ->  | F29: =IFERROR(INDEX(DetalhesDaFatura[],SMALL(IF(DetalhesDaFatura[]=rngFatura,ROW(DetalhesDaFatura[])-ROW(DetalhesDaFatura[#Headers])), ROW(16:16)), MATCH($F$14, DetalhesDaFatura[#Headers], 0)),"") -> 
B30: =IFERROR(INDEX(DetalhesDaFatura[],SMALL(IF(DetalhesDaFatura[]=rngFatura,ROW(DetalhesDaFatura[])-ROW(DetalhesDaFatura[#Headers])), ROW(17:17)), MATCH($B$14, DetalhesDaFatura[#Headers], 0)),"") ->  | C30: =IFERROR(INDEX(DetalhesDaFatura[],SMALL(IF(DetalhesDaFatura[]=rngFatura,ROW(DetalhesDaFatura[])-ROW(DetalhesDaFatura[#Headers])), ROW(17:17)), MATCH($C$14, DetalhesDaFatura[#Headers], 0)),"") ->  | D30: =IFERROR(INDEX(DetalhesDaFatura[],SMALL(IF(DetalhesDaFatura[]=rngFatura,ROW(DetalhesDaFatura[])-ROW(DetalhesDaFatura[#Headers])), ROW(17:17)), MATCH($D$14, DetalhesDaFatura[#Headers], 0)),"") ->  | E30: =IFERROR(INDEX(DetalhesDaFatura[],SMALL(IF(DetalhesDaFatura[]=rngFatura,ROW(DetalhesDaFatura[])-ROW(DetalhesDaFatura[#Headers])), ROW(17:17)), MATCH($E$14, DetalhesDaFatura[#Headers], 0)),"") ->  | F30: =IFERROR(INDEX(DetalhesDaFatura[],SMALL(IF(DetalhesDaFatura[]=rngFatura,ROW(DetalhesDaFatura[])-ROW(DetalhesDaFatura[#Headers])), ROW(17:17)), MATCH($F$14, DetalhesDaFatura[#Headers], 0)),"") -> 
B31: =IFERROR(INDEX(DetalhesDaFatura[],SMALL(IF(DetalhesDaFatura[]=rngFatura,ROW(DetalhesDaFatura[])-ROW(DetalhesDaFatura[#Headers])), ROW(18:18)), MATCH($B$14, DetalhesDaFatura[#Headers], 0)),"") ->  | C31: =IFERROR(INDEX(DetalhesDaFatura[],SMALL(IF(DetalhesDaFatura[]=rngFatura,ROW(DetalhesDaFatura[])-ROW(DetalhesDaFatura[#Headers])), ROW(18:18)), MATCH($C$14, DetalhesDaFatura[#Headers], 0)),"") ->  | D31: =IFERROR(INDEX(DetalhesDaFatura[],SMALL(IF(DetalhesDaFatura[]=rngFatura,ROW(DetalhesDaFatura[])-ROW(DetalhesDaFatura[#Headers])), ROW(18:18)), MATCH($D$14, DetalhesDaFatura[#Headers], 0)),"") ->  | E31: =IFERROR(INDEX(DetalhesDaFatura[],SMALL(IF(DetalhesDaFatura[]=rngFatura,ROW(DetalhesDaFatura[])-ROW(DetalhesDaFatura[#Headers])), ROW(18:18)), MATCH($E$14, DetalhesDaFatura[#Headers], 0)),"") ->  | F31: =IFERROR(INDEX(DetalhesDaFatura[],SMALL(IF(DetalhesDaFatura[]=rngFatura,ROW(DetalhesDaFatura[])-ROW(DetalhesDaFatura[#Headers])), ROW(18:18)), MATCH($F$14, DetalhesDaFatura[#Headers], 0)),"") -> 
B32: =IFERROR(INDEX(DetalhesDaFatura[],SMALL(IF(DetalhesDaFatura[]=rngFatura,ROW(DetalhesDaFatura[])-ROW(DetalhesDaFatura[#Headers])), ROW(19:19)), MATCH($B$14, DetalhesDaFatura[#Headers], 0)),"") ->  | C32: =IFERROR(INDEX(DetalhesDaFatura[],SMALL(IF(DetalhesDaFatura[]=rngFatura,ROW(DetalhesDaFatura[])-ROW(DetalhesDaFatura[#Headers])), ROW(19:19)), MATCH($C$14, DetalhesDaFatura[#Headers], 0)),"") ->  | D32: =IFERROR(INDEX(DetalhesDaFatura[],SMALL(IF(DetalhesDaFatura[]=rngFatura,ROW(DetalhesDaFatura[])-ROW(DetalhesDaFatura[#Headers])), ROW(19:19)), MATCH($D$14, DetalhesDaFatura[#Headers], 0)),"") ->  | E32: =IFERROR(INDEX(DetalhesDaFatura[],SMALL(IF(DetalhesDaFatura[]=rngFatura,ROW(DetalhesDaFatura[])-ROW(DetalhesDaFatura[#Headers])), ROW(19:19)), MATCH($E$14, DetalhesDaFatura[#Headers], 0)),"") ->  | F32: =IFERROR(INDEX(DetalhesDaFatura[],SMALL(IF(DetalhesDaFatura[]=rngFatura,ROW(DetalhesDaFatura[])-ROW(DetalhesDaFatura[#Headers])), ROW(19:19)), MATCH($F$14, DetalhesDaFatura[#Headers], 0)),"") -> 
B33: =IFERROR(INDEX(DetalhesDaFatura[],SMALL(IF(DetalhesDaFatura[]=rngFatura,ROW(DetalhesDaFatura[])-ROW(DetalhesDaFatura[#Headers])), ROW(20:20)), MATCH($B$14, DetalhesDaFatura[#Headers], 0)),"") ->  | C33: =IFERROR(INDEX(DetalhesDaFatura[],SMALL(IF(DetalhesDaFatura[]=rngFatura,ROW(DetalhesDaFatura[])-ROW(DetalhesDaFatura[#Headers])), ROW(20:20)), MATCH($C$14, DetalhesDaFatura[#Headers], 0)),"") ->  | D33: =IFERROR(INDEX(DetalhesDaFatura[],SMALL(IF(DetalhesDaFatura[]=rngFatura,ROW(DetalhesDaFatura[])-ROW(DetalhesDaFatura[#Headers])), ROW(20:20)), MATCH($D$14, DetalhesDaFatura[#Headers], 0)),"") ->  | E33: =IFERROR(INDEX(DetalhesDaFatura[],SMALL(IF(DetalhesDaFatura[]=rngFatura,ROW(DetalhesDaFatura[])-ROW(DetalhesDaFatura[#Headers])), ROW(20:20)), MATCH($E$14, DetalhesDaFatura[#Headers], 0)),"") ->  | F33: =IFERROR(INDEX(DetalhesDaFatura[],SMALL(IF(DetalhesDaFatura[]=rngFatura,ROW(DetalhesDaFatura[])-ROW(DetalhesDaFatura[#Headers])), ROW(20:20)), MATCH($F$14, DetalhesDaFatura[#Headers], 0)),"") -> 
B34: =IFERROR(INDEX(DetalhesDaFatura[],SMALL(IF(DetalhesDaFatura[]=rngFatura,ROW(DetalhesDaFatura[])-ROW(DetalhesDaFatura[#Headers])), ROW(21:21)), MATCH($B$14, DetalhesDaFatura[#Headers], 0)),"") ->  | C34: =IFERROR(INDEX(DetalhesDaFatura[],SMALL(IF(DetalhesDaFatura[]=rngFatura,ROW(DetalhesDaFatura[])-ROW(DetalhesDaFatura[#Headers])), ROW(21:21)), MATCH($C$14, DetalhesDaFatura[#Headers], 0)),"") ->  | D34: =IFERROR(INDEX(DetalhesDaFatura[],SMALL(IF(DetalhesDaFatura[]=rngFatura,ROW(DetalhesDaFatura[])-ROW(DetalhesDaFatura[#Headers])), ROW(21:21)), MATCH($D$14, DetalhesDaFatura[#Headers], 0)),"") ->  | E34: =IFERROR(INDEX(DetalhesDaFatura[],SMALL(IF(DetalhesDaFatura[]=rngFatura,ROW(DetalhesDaFatura[])-ROW(DetalhesDaFatura[#Headers])), ROW(21:21)), MATCH($E$14, DetalhesDaFatura[#Headers], 0)),"") ->  | F34: =IFERROR(INDEX(DetalhesDaFatura[],SMALL(IF(DetalhesDaFatura[]=rngFatura,ROW(DetalhesDaFatura[])-ROW(DetalhesDaFatura[#Headers])), ROW(21:21)), MATCH($F$14, DetalhesDaFatura[#Headers], 0)),"") -> 
E36: Subtotal da Fatura | G36: =SUM(FaturaProjeto[Preço]) -> R$ 1,819.00
B37: Total devido em <#> dias. Contas em atraso devido a um encargo de serviço de <#>% por mês. | E37: =IFERROR("Imposto sobre Vendas (" & TEXT(VLOOKUP(rngFatura,FaturasPrincipal[],5),"0.00%") & ")","Taxa de imposto sobre vendas") -> Imposto sobre Vendas (8.75%) | G37: =_xlfn.SINGLE(IFERROR(G36*VLOOKUP(_xlfn.SINGLE(rngFatura),FaturasPrincipal[],5),0)) -> 
E38: Outros | G38: =_xlfn.SINGLE(IFERROR(VLOOKUP(_xlfn.SINGLE(rngFatura),FaturasPrincipal[],6),0)) -> 
B39: ="Colocar todos os cheques nominais à ordem de "&NomeDaEmpresa&"." -> Colocar todos os cheques nominais à ordem de NOME DA EMPRESA. | E39: Depósito recebido | G39: =_xlfn.SINGLE(IFERROR(VLOOKUP(_xlfn.SINGLE(rngFatura),FaturasPrincipal[],7),0)) -> 
B40: Obrigado pela preferência! | E40: TOTAL | G40: =(G36+G37+G38)-G39 -> 

Sheet Clientes
B4: Pesquisar | C4: Nº da Empresa | D4: Nome da empresa | E4: Nome do Contato | F4: Endereço | G4: Cidade | H4: Estado | I4: CEP | J4: Telefone | K4: Email | L4: Fax
B5: =C5& " - "&D5 -> 1 - Tailspin Toys | C5: 1 | D5: Tailspin Toys | E5: Lara Cardoso | F5: Rua Ipê-amarelo, 111 | G5: São Paulo | H5: SP | I5: 12345 | J5: (55) 3555-0178 | K5: pessoa@example.com | L5: (55) 3693-9595
B6: 2 - Contoso, Ltd | C6: 2 | D6: Contoso, Ltd | E6: Alice Pena | F6: Rua Castanheira, 555 | G6: Campinas | H6: SP | I6: 98765 | J6: (55) 3555-0189 | K6: pessoa@exemplo.com | L6: 432-555-0123
B7: Total | C7: ="Total de Clientes: "&SUBTOTAL(103,ListaClientes[Nº da Empresa]) -> Total de Clientes: 2

Sheet Faturas – Principal
B4: Nº da Fatura | C4: EMPRESA | D4: Data da fatura | E4: Descrição do projeto | F4: Alíquota de Imposto | G4: Outros | H4: Depósito | I4: Total de detalhes | J4: Total da fatura | K4: Anotações
B5: 3-456-1 | C5: 1 - Tailspin Toys | D5: =TODAY() -> 2019-10-22 | E5: Projeto 1 | F5: 8.75% | G5: R$ 100.00 | H5: R$ 100.00 | I5: =SUMIF(DetalhesDaFatura[Nº da fatura],"="&FaturasPrincipal[[#This Row],[Nº da Fatura]],DetalhesDaFatura[Total]) -> R$ 2,660.00 | J5: =(FaturasPrincipal[[#This Row],[Total de detalhes]]*(1+FaturasPrincipal[[#This Row],[Alíquota de Imposto]]))+FaturasPrincipal[[#This Row],[Outros]]-FaturasPrincipal[[#This Row],[Depósito]] -> R$ 2,892.75
B6: 3-456-2 | C6: 2 - Contoso, Ltd | D6: =TODAY()+10 -> 2019-11-01 | E6: Projeto 2 | F6: 8.75% | I6: =SUMIF(DetalhesDaFatura[Nº da fatura],"="&FaturasPrincipal[[#This Row],[Nº da Fatura]],DetalhesDaFatura[Total]) -> R$ 2,014.00 | J6: =(FaturasPrincipal[[#This Row],[Total de detalhes]]*(1+FaturasPrincipal[[#This Row],[Alíquota de Imposto]]))+FaturasPrincipal[[#This Row],[Outros]]-FaturasPrincipal[[#This Row],[Depósito]] -> R$ 2,190.23
B7: ="Faturas totais: "&SUBTOTAL(103,FaturasPrincipal[Nº da Fatura]) -> Faturas totais: 2 | F7: Totais: | G7: =SUBTOTAL(109,FaturasPrincipal[Outros]) -> R$ 100.00 | H7: =SUBTOTAL(109,FaturasPrincipal[Depósito]) -> R$ 100.00 | I7: =SUBTOTAL(109,FaturasPrincipal[Total de detalhes]) -> R$ 4,674.00 | J7: =SUBTOTAL(109,FaturasPrincipal[Total da fatura]) -> R$ 5,082.98

Sheet Detalhes da fatura
B4: Descrição | C4: Nº da fatura | D4: Nº do item | E4: Qtd. | F4: Preço unitário | G4: Desconto | H4: Total
B5: Fatura 3-456-1 Dados 1 | C5: 3-456-1 | D5: 1 | E5: 1 | F5: R$ 1.00 | G5: R$ 1.00 | H5: =(DetalhesDaFatura[[#This Row],[Qtd.]]*DetalhesDaFatura[[#This Row],[Preço unitário]])-DetalhesDaFatura[[#This Row],[Desconto]] -> R$ 0.00
B6: Fatura 3-456-1 Dados 2 | C6: 3-456-1 | D6: 2 | E6: 2 | F6: R$ 2.00 | G6: R$ 2.00 | H6: =(DetalhesDaFatura[[#This Row],[Qtd.]]*DetalhesDaFatura[[#This Row],[Preço unitário]])-DetalhesDaFatura[[#This Row],[Desconto]] -> R$ 2.00
B7: Fatura 3-456-1 Dados 3 | C7: 3-456-1 | D7: 3 | E7: 3 | F7: R$ 3.00 | G7: R$ 3.00 | H7: =(DetalhesDaFatura[[#This Row],[Qtd.]]*DetalhesDaFatura[[#This Row],[Preço unitário]])-DetalhesDaFatura[[#This Row],[Desconto]] -> R$ 6.00
B8: Fatura 3-456-1 Dados 4 | C8: 3-456-1 | D8: 4 | E8: 4 | F8: R$ 4.00 | G8: R$ 4.00 | H8: =(DetalhesDaFatura[[#This Row],[Qtd.]]*DetalhesDaFatura[[#This Row],[Preço unitário]])-DetalhesDaFatura[[#This Row],[Desconto]] -> R$ 12.00
B9: Fatura 3-456-1 Dados 5 | C9: 3-456-1 | D9: 5 | E9: 5 | F9: R$ 5.00 | G9: R$ 5.00 | H9: =(DetalhesDaFatura[[#This Row],[Qtd.]]*DetalhesDaFatura[[#This Row],[Preço unitário]])-DetalhesDaFatura[[#This Row],[Desconto]] -> R$ 20.00
B10: Fatura 3-456-1 Dados 6 | C10: 3-456-1 | D10: 6 | E10: 6 | F10: R$ 6.00 | G10: R$ 6.00 | H10: =(DetalhesDaFatura[[#This Row],[Qtd.]]*DetalhesDaFatura[[#This Row],[Preço unitário]])-DetalhesDaFatura[[#This Row],[Desconto]] -> R$ 30.00
B11: Fatura 3-456-1 Dados 7 | C11: 3-456-1 | D11: 7 | E11: 7 | F11: R$ 7.00 | G11: R$ 7.00 | H11: =(DetalhesDaFatura[[#This Row],[Qtd.]]*DetalhesDaFatura[[#This Row],[Preço unitário]])-DetalhesDaFatura[[#This Row],[Desconto]] -> R$ 42.00
B12: Fatura 3-456-1 Dados 8 | C12: 3-456-1 | D12: 8 | E12: 8 | F12: R$ 8.00 | G12: R$ 8.00 | H12: =(DetalhesDaFatura[[#This Row],[Qtd.]]*DetalhesDaFatura[[#This Row],[Preço unitário]])-DetalhesDaFatura[[#This Row],[Desconto]] -> R$ 56.00
B13: Fatura 3-456-1 Dados 9 | C13: 3-456-1 | D13: 9 | E13: 9 | F13: R$ 9.00 | G13: R$ 9.00 | H13: =(DetalhesDaFatura[[#This Row],[Qtd.]]*DetalhesDaFatura[[#This Row],[Preço unitário]])-DetalhesDaFatura[[#This Row],[Desconto]] -> R$ 72.00
B14: Fatura 3-456-1 Dados 10 | C14: 3-456-1 | D14: 10 | E14: 10 | F14: R$ 10.00 | G14: R$ 10.00 | H14: =(DetalhesDaFatura[[#This Row],[Qtd.]]*DetalhesDaFatura[[#This Row],[Preço unitário]])-DetalhesDaFatura[[#This Row],[Desconto]] -> R$ 90.00
B15: Fatura 3-456-1 Dados 11 | C15: 3-456-1 | D15: 11 | E15: 11 | F15: R$ 11.00 | G15: R$ 11.00 | H15: =(DetalhesDaFatura[[#This Row],[Qtd.]]*DetalhesDaFatura[[#This Row],[Preço unitário]])-DetalhesDaFatura[[#This Row],[Desconto]] -> R$ 110.00
B16: Fatura 3-456-1 Dados 12 | C16: 3-456-1 | D16: 12 | E16: 12 | F16: R$ 12.00 | G16: R$ 12.00 | H16: =(DetalhesDaFatura[[#This Row],[Qtd.]]*DetalhesDaFatura[[#This Row],[Preço unitário]])-DetalhesDaFatura[[#This Row],[Desconto]] -> R$ 132.00
B17: Fatura 3-456-1 Dados 13 | C17: 3-456-1 | D17: 13 | E17: 13 | F17: R$ 13.00 | G17: R$ 13.00 | H17: =(DetalhesDaFatura[[#This Row],[Qtd.]]*DetalhesDaFatura[[#This Row],[Preço unitário]])-DetalhesDaFatura[[#This Row],[Desconto]] -> R$ 156.00
B18: Fatura 3-456-1 Dados 14 | C18: 3-456-1 | D18: 14 | E18: 14 | F18: R$ 14.00 | G18: R$ 14.00 | H18: =(DetalhesDaFatura[[#This Row],[Qtd.]]*DetalhesDaFatura[[#This Row],[Preço unitário]])-DetalhesDaFatura[[#This Row],[Desconto]] -> R$ 182.00
B19: Fatura 3-456-1 Dados 15 | C19: 3-456-1 | D19: 15 | E19: 15 | F19: R$ 15.00 | G19: R$ 15.00 | H19: =(DetalhesDaFatura[[#This Row],[Qtd.]]*DetalhesDaFatura[[#This Row],[Preço unitário]])-DetalhesDaFatura[[#This Row],[Desconto]] -> R$ 210.00
B20: Fatura 3-456-1 Dados 16 | C20: 3-456-1 | D20: 16 | E20: 16 | F20: R$ 16.00 | G20: R$ 16.00 | H20: =(DetalhesDaFatura[[#This Row],[Qtd.]]*DetalhesDaFatura[[#This Row],[Preço unitário]])-DetalhesDaFatura[[#This Row],[Desconto]] -> R$ 240.00
B21: Fatura 3-456-1 Dados 17 | C21: 3-456-1 | D21: 17 | E21: 17 | F21: R$ 17.00 | G21: R$ 17.00 | H21: =(DetalhesDaFatura[[#This Row],[Qtd.]]*DetalhesDaFatura[[#This Row],[Preço unitário]])-DetalhesDaFatura[[#This Row],[Desconto]] -> R$ 272.00
B22: Fatura 3-456-1 Dados 18 | C22: 3-456-1 | D22: 18 | E22: 18 | F22: R$ 18.00 | G22: R$ 18.00 | H22: =(DetalhesDaFatura[[#This Row],[Qtd.]]*DetalhesDaFatura[[#This Row],[Preço unitário]])-DetalhesDaFatura[[#This Row],[Desconto]] -> R$ 306.00
B23: Fatura 3-456-1 Dados 19 | C23: 3-456-1 | D23: 19 | E23: 19 | F23: R$ 19.00 | G23: R$ 19.00 | H23: =(DetalhesDaFatura[[#This Row],[Qtd.]]*DetalhesDaFatura[[#This Row],[Preço unitário]])-DetalhesDaFatura[[#This Row],[Desconto]] -> R$ 342.00
B24: Fatura 3-456-1 Dados 20 | C24: 3-456-1 | D24: 20 | E24: 20 | F24: R$ 20.00 | G24: R$ 20.00 | H24: =(DetalhesDaFatura[[#This Row],[Qtd.]]*DetalhesDaFatura[[#This Row],[Preço unitário]])-DetalhesDaFatura[[#This Row],[Desconto]] -> R$ 380.00
B25: Fatura 3-456-2 Dados 1 | C25: 3-456-2 | D25: Z4567 | E25: 39 | F25: R$ 5.00 | H25: =(DetalhesDaFatura[[#This Row],[Qtd.]]*DetalhesDaFatura[[#This Row],[Preço unitário]])-DetalhesDaFatura[[#This Row],[Desconto]] -> R$ 195.00
B26: Fatura 3-456-2 Dados 2 | C26: 3-456-2 | D26: Z4568 | E26: 40 | F26: R$ 4.00 | G26: R$ 5.00 | H26: =(DetalhesDaFatura[[#This Row],[Qtd.]]*DetalhesDaFatura[[#This Row],[Preço unitário]])-DetalhesDaFatura[[#This Row],[Desconto]] -> R$ 155.00
B27: Fatura 3-456-2 Dados 3 | C27: 3-456-2 | D27: Z4569 | E27: 30 | F27: R$ 6.00 | G27: R$ 7.00 | H27: =(DetalhesDaFatura[[#This Row],[Qtd.]]*DetalhesDaFatura[[#This Row],[Preço unitário]])-DetalhesDaFatura[[#This Row],[Desconto]] -> R$ 173.00
B28: Fatura 3-456-2 Dados 4 | C28: 3-456-2 | D28: Z4570 | E28: 40 | F28: R$ 7.00 | H28: =(DetalhesDaFatura[[#This Row],[Qtd.]]*DetalhesDaFatura[[#This Row],[Preço unitário]])-DetalhesDaFatura[[#This Row],[Desconto]] -> R$ 280.00
B29: Fatura 3-456-2 Dados 5 | C29: 3-456-2 | D29: Z4571 | E29: 10 | F29: R$ 4.00 | H29: =(DetalhesDaFatura[[#This Row],[Qtd.]]*DetalhesDaFatura[[#This Row],[Preço unitário]])-DetalhesDaFatura[[#This Row],[Desconto]] -> R$ 40.00
B30: Fatura 3-456-2 Dados 6 | C30: 3-456-2 | D30: Z4572 | E30: 5 | F30: R$ 8.00 | H30: =(DetalhesDaFatura[[#This Row],[Qtd.]]*DetalhesDaFatura[[#This Row],[Preço unitário]])-DetalhesDaFatura[[#This Row],[Desconto]] -> R$ 40.00
B31: Fatura 3-456-2 Dados 7 | C31: 3-456-2 | D31: Z4573 | E31: 70 | F31: R$ 6.00 | H31: =(DetalhesDaFatura[[#This Row],[Qtd.]]*DetalhesDaFatura[[#This Row],[Preço unitário]])-DetalhesDaFatura[[#This Row],[Desconto]] -> R$ 420.00
B32: Fatura 3-456-2 Dados 8 | C32: 3-456-2 | D32: Z4574 | E32: 25 | F32: R$ 4.00 | H32: =(DetalhesDaFatura[[#This Row],[Qtd.]]*DetalhesDaFatura[[#This Row],[Preço unitário]])-DetalhesDaFatura[[#This Row],[Desconto]] -> R$ 100.00
B33: Fatura 3-456-2 Dados 9 | C33: 3-456-2 | D33: Z4575 | E33: 5 | F33: R$ 7.00 | G33: R$ 3.00 | H33: =(DetalhesDaFatura[[#This Row],[Qtd.]]*DetalhesDaFatura[[#This Row],[Preço unitário]])-DetalhesDaFatura[[#This Row],[Desconto]] -> R$ 32.00
B34: Fatura 3-456-2 Dados 10 | C34: 3-456-2 | D34: Z4576 | E34: 80 | F34: R$ 1.00 | H34: =(DetalhesDaFatura[[#This Row],[Qtd.]]*DetalhesDaFatura[[#This Row],[Preço unitário]])-DetalhesDaFatura[[#This Row],[Desconto]] -> R$ 80.00
B35: Fatura 3-456-2 Dados 11 | C35: 3-456-2 | D35: Z4577 | E35: 65 | F35: R$ 7.00 | H35: =(DetalhesDaFatura[[#This Row],[Qtd.]]*DetalhesDaFatura[[#This Row],[Preço unitário]])-DetalhesDaFatura[[#This Row],[Desconto]] -> R$ 455.00
B36: Fatura 3-456-2 Dados 12 | C36: 3-456-2 | D36: Z4578 | E36: 44 | F36: R$ 1.00 | H36: =(DetalhesDaFatura[[#This Row],[Qtd.]]*DetalhesDaFatura[[#This Row],[Preço unitário]])-DetalhesDaFatura[[#This Row],[Desconto]] -> R$ 44.00
